bitfinex/quotes_SOLUSD_20250821
["timestamp","ask_amount","ask_price","bid_price","bid_amount"]
[1755809120207,48.95353576,180.62,180.6,0.7]
[1755809120437,48.95353576,180.62,180.61,0.7]
[1755809120816,5.85353576,180.62,180.61,0.7]
[1755809121010,0.06,180.62,180.61,0.7]
[1755809121233,0.06,180.62,180.61,32.23679198]
[1755809122146,5.85353576,180.62,180.61,26.7]
[1755809124106,0.06,180.62,180.61,26.7]
[1755809128331,0.06,180.62,180.61,32.23679198]
[1755809128510,0.06,180.62,180.61,26.7]
[1755809128907,0.06,180.62,180.61,32.23679198]
[1755809129335,0.06,180.62,180.61,26.7]
[1755809130445,0.06,180.62,180.61,32.23679198]
[1755809130614,0.06,180.62,180.61,38.03032774]
[1755809130823,0.06,180.62,180.61,45.83238599]
[1755809131033,0.06,180.62,180.61,51.62592175]
[1755809132243,1e-08,180.62,180.61,57.70378065]
[1755809132442,1e-08,180.62,180.61,51.91024489]
[1755809133734,1e-08,180.62,180.61,51.62592175]
[1755809135461,1e-08,180.62,180.61,31.53679198]
[1755809135954,1e-08,180.62,180.59,22.91597166]
[1755809136118,5.79353577,180.62,180.59,6.26734066]
[1755809136317,1e-08,180.62,180.59,6.26734066]
[1755809136745,1e-08,180.62,180.61,26.0]
[1755809137118,1e-08,180.62,180.61,26.7]
[1755809137318,1e-08,180.62,180.61,0.7]
[1755809137520,5.79353577,180.62,180.61,26.0]
[1755809137742,6.19353577,180.62,180.61,26.0]
[1755809138250,0.40000001,180.62,180.61,26.0]
[1755809138547,6.19353577,180.62,180.61,26.0]
[1755809138732,5.79353577,180.62,180.61,26.0]
[1755809139854,1e-08,180.62,180.61,26.7]
[1755809140757,1e-08,180.62,180.61,32.49353576]
[1755809140956,1e-08,180.62,180.61,26.7]
[1755809142026,1e-08,180.62,180.61,6.23679198]
[1755809142840,1e-08,180.62,180.61,12.03032774]
[1755809143646,1e-08,180.62,180.61,6.23679198]
[1755809144763,1e-08,180.62,180.61,12.03032774]
[1755809145271,1e-08,180.62,180.61,25.62592175]
[1755809146543,1e-08,180.62,180.61,27.84536975]
[1755809147357,1e-08,180.62,180.61,14.24977574]
[1755809147560,1e-08,180.62,180.61,40.24977574]
[1755809147874,1e-08,180.62,180.61,14.24977574]
[1755809148336,1e-08,180.62,180.61,40.24977574]
[1755809148663,1e-08,180.62,180.61,14.24977574]
[1755809149346,1e-08,180.62,180.61,7.75623998]
[1755809149677,1e-08,180.62,180.61,26.0]
[1755809150044,1e-08,180.62,180.61,26.03]
[1755809151137,1e-08,180.62,180.61,31.56679198]
[1755809152534,1e-08,180.62,180.61,32.26679198]
[1755809152939,1e-08,180.62,180.61,38.06032774]
[1755809153139,1e-08,180.62,180.61,51.65592175]
[1755809154160,1e-08,180.62,180.61,46.14670913]
[1755809154360,0.06,180.63,180.62,13.87991715]
[1755809154361,1e-08,180.63,180.62,13.87991715]
[1755809154573,1e-08,180.63,180.62,20.37345291]
[1755809155270,1e-08,180.63,180.62,25.90993834]
[1755809158668,1e-08,180.63,180.62,28.12889434]
[1755809160659,1e-08,180.63,180.62,65.39535858]
[1755809160865,1e-08,180.63,180.62,71.18889434]
[1755809161380,1e-08,180.63,180.62,27.8445712]
[1755809161551,1e-08,180.63,180.62,70.9045712]
[1755809165084,1e-08,180.63,180.62,27.8445712]
[1755809165378,1e-08,180.63,180.62,70.9045712]
[1755809165692,1e-08,180.63,180.62,2.218956]
[1755809165868,1e-08,180.63,180.62,5.53648543]
[1755809166185,1e-08,180.63,180.62,11.33002119]
[1755809167065,1e-08,180.63,180.62,25.6256152]
[1755809168163,0.06,180.64,180.63,13.59559401]
[1755809168355,0.06,180.64,180.63,68.94266553]
[1755809168966,0.06,180.64,180.63,57.35559401]
[1755809169167,0.06,180.64,180.63,68.68530869]
[1755809171187,0.06,180.64,180.63,25.62530869]
[1755809171388,0.06,180.64,180.63,70.90426369]
[1755809171784,0.06,180.64,180.63,27.84426369]
[1755809172090,0.06,180.64,180.61,0.03]
[1755809172091,0.46,180.64,180.62,5.53637907]
[1755809172695,0.06,180.64,180.62,5.53637907]
[1755809174997,0.46,180.64,180.62,5.53637907]
[1755809175399,0.06,180.64,180.62,5.53637907]
[1755809175610,0.06,180.64,180.63,6.49353576]
[1755809177083,0.06,180.64,180.63,8.71286076]
[1755809177711,0.06,180.64,180.63,14.24903968]
[1755809178004,0.06,180.64,180.63,8.45550392]
[1755809178177,0.06,180.64,180.63,14.24903968]
[1755809179804,0.06,180.64,180.63,8.45550392]
[1755809180011,0.06,180.64,180.63,14.24903968]
[1755809180498,1e-08,180.64,180.63,27.84463369]
[1755809180703,1e-08,180.64,180.63,33.63816945]
[1755809180903,1e-08,180.65,180.64,13.59559401]
[1755809181201,1e-08,180.66,180.65,0.28432314]
[1755809181415,1e-08,180.66,180.65,14.57991715]
[1755809181788,1e-08,180.66,180.65,25.90901892]
[1755809182494,1e-08,180.66,180.65,68.96901892]
[1755809182802,1e-08,180.66,180.65,71.18760492]
[1755809183506,0.14000001,180.72,180.69,26.0]
[1755809183701,0.14000001,180.72,180.71,26.0]
[1755809184095,5.79353576,180.73,180.71,26.0]
[1755809185683,5.79353576,180.73,180.72,26.0]
[1755809186609,3.72772778,180.75,180.73,26.0]
[1755809186805,5.79353576,180.74,180.73,26.0]
[1755809186989,5.79353576,180.74,180.72,26.0]
[1755809188932,5.79353576,180.74,180.73,26.0]
[1755809189508,5.79353576,180.74,180.72,26.0]
[1755809190796,5.79353576,180.73,180.72,26.0]
[1755809191006,5.79353576,180.74,180.73,26.0]
[1755809191515,5.79353576,180.74,180.72,26.0]
[1755809192515,4.93597921,180.8,180.72,26.0]
[1755809192710,5.79353576,180.74,180.72,26.0]
[1755809193113,5.79353576,180.74,180.73,26.0]
[1755809195617,4.93597921,180.8,180.73,26.0]
[1755809195790,132.46,180.78,180.74,26.0]
[1755809196821,132.46,180.78,180.73,26.0]
[1755809196998,5.79353576,180.74,180.73,26.0]
[1755809199330,4.79353576,180.74,180.73,26.0]
[1755809202719,43.12,180.76,180.73,26.7]
[1755809202930,43.12,180.76,180.74,26.0]
[1755809203103,5.79353576,180.75,180.74,26.0]
[1755809203532,5.29353576,180.75,180.74,26.0]
[1755809205398,5.29353576,180.75,180.73,26.0]
[1755809205715,5.79353576,180.74,180.73,26.7]
[1755809206230,5.79353576,180.75,180.74,26.0]
[1755809208941,43.12,180.76,180.74,26.7]
[1755809209110,43.12,180.76,180.75,26.0]
[1755809209433,43.12,180.76,180.75,26.7]
[1755809209611,0.06,180.76,180.75,26.7]
[1755809210721,5.85353576,180.76,180.72,31.56330933]
[1755809210907,5.85353576,180.76,180.75,0.7]
[1755809211108,5.85353576,180.76,180.75,26.7]
[1755809211942,5.85353576,180.76,180.75,0.7]
[1755809212162,0.06,180.76,180.75,0.7]
[1755809212309,0.06,180.76,180.75,26.7]
[1755809213335,0.06,180.76,180.75,43.337551]
[1755809216331,5.85353576,180.76,180.75,43.337551]
[1755809217041,0.06,180.76,180.75,43.337551]
[1755809219318,0.06,180.76,180.75,54.66359021]
[1755809219518,0.06,180.76,180.75,68.25918422]
[1755809219918,0.06,180.78,180.75,68.25918422]
[1755809220120,0.06,180.78,180.77,5.79353576]
[1755809220528,0.06,180.78,180.77,0.7]
[1755809220736,0.06,180.78,180.77,26.7]
[1755809221031,0.06,180.78,180.77,43.332938]
[1755809224522,0.06,180.78,180.77,54.65836511]
[1755809225831,0.06,180.78,180.77,43.332938]
[1755809226332,5.85353576,180.78,180.77,16.632938]
[1755809226851,13.92515388,180.78,180.74,0.03]
[1755809227039,5.79353576,180.75,180.74,0.03]
[1755809227730,5.79353576,180.75,180.74,16.668474]
[1755809229241,13.86757655,180.75,180.74,0.03]
[1755809229550,10.13821885,180.75,180.74,0.03]
[1755809229744,13.86772884,180.75,180.74,0.03]
[1755809230050,10.13837114,180.75,180.74,0.03]
[1755809230223,13.86772884,180.75,180.74,0.03]
[1755809230430,10.13837114,180.75,180.74,0.03]
[1755809230630,13.86772884,180.75,180.74,0.03]
[1755809231150,14.15205198,180.75,180.74,26.03]
[1755809231554,14.15205198,180.75,180.74,0.03]
[1755809232530,0.28432314,180.74,180.72,0.03]
[1755809232860,0.28432314,180.72,180.7,0.03]
[1755809233058,14.15205198,180.71,180.7,0.03]
[1755809235258,56.68772884,180.71,180.7,0.03]
[1755809235556,48.81353576,180.71,180.7,0.03]
[1755809235751,48.81353576,180.71,180.7,0.73]
[1755809235946,48.81353576,180.71,180.7,0.03]
[1755809237037,52.53824028,180.71,180.7,0.03]
[1755809237355,48.81353576,180.71,180.7,0.03]
[1755809237654,43.02,180.71,180.7,0.03]
[1755809237862,48.81353576,180.71,180.7,0.03]
[1755809238356,49.01353576,180.71,180.7,0.03]
[1755809238559,53.02115579,180.71,180.7,0.03]
[1755809238755,57.15874635,180.71,180.7,0.03]
[1755809238933,53.02115579,180.71,180.7,0.03]
[1755809239134,55.92624309,180.71,180.7,0.03]
[1755809239644,55.92494871,180.71,180.7,0.03]
[1755809243782,132.4,180.7,180.68,0.03]
[1755809244077,189.06400586,180.69,180.68,0.03]
[1755809244237,189.26400586,180.69,180.68,0.03]
[1755809245575,184.93177959,180.69,180.68,0.03]
[1755809245872,185.21610273,180.69,180.68,0.03]
[1755809246571,181.4978589,180.69,180.68,0.03]
[1755809247065,185.41246501,180.69,180.68,0.03]
[1755809248045,185.21246501,180.69,180.68,0.03]
[1755809248244,181.4978589,180.69,180.68,0.03]
[1755809249877,138.4778589,180.69,180.68,0.7]
[1755809250047,181.4978589,180.69,180.68,0.7]
[1755809250757,181.21353576,180.69,180.68,0.7]
[1755809252170,175.42,180.69,180.68,0.7]
[1755809252473,181.21353576,180.69,180.68,17.344935]
[1755809253169,175.42,180.69,180.68,17.344935]
[1755809253470,181.21353576,180.69,180.68,17.344935]
[1755809257458,181.21353576,180.69,180.68,16.674935]
[1755809257663,181.21353576,180.69,180.68,0.03]
[1755809258382,181.21353576,180.69,180.68,26.7]
[1755809261053,181.21353576,180.69,180.68,26.03]
[1755809262265,181.6978589,180.69,180.68,26.03]
[1755809262483,185.4104109,180.69,180.68,0.03]
[1755809264264,181.6978589,180.69,180.68,0.03]
[1755809264462,185.41052653,180.69,180.68,0.03]
[1755809265189,185.21052653,180.69,180.68,0.03]
[1755809266760,52.81052653,180.69,180.68,0.03]
[1755809267255,56.93945573,180.69,180.68,0.03]
[1755809267882,56.93950572,180.69,180.68,0.03]
[1755809269091,48.81353576,180.69,180.68,0.72]
[1755809269277,52.53327787,180.69,180.68,0.72]
[1755809269858,52.53327787,180.69,180.68,26.72]
[1755809270371,48.81353576,180.69,180.68,43.364935]
[1755809270869,48.81353576,180.69,180.68,0.72]
[1755809271269,52.53932079,180.69,180.68,0.72]
[1755809271790,48.81353576,180.69,180.68,0.72]
[1755809271975,52.53932079,180.69,180.68,0.72]
[1755809272170,9.51932079,180.69,180.68,0.72]
[1755809272392,48.81353576,180.69,180.68,0.72]
[1755809273100,52.54297399,180.69,180.68,0.72]
[1755809273390,52.54297399,180.69,180.68,26.72]
[1755809274010,46.74943823,180.69,180.68,26.72]
[1755809274178,52.54297399,180.69,180.68,26.72]
[1755809275498,56.69073573,180.69,180.68,26.72]
[1755809276386,52.54297399,180.69,180.68,26.72]
[1755809276594,56.69191067,180.69,180.68,26.72]
[1755809276887,56.69200369,180.69,180.68,26.72]
[1755809277285,56.69307786,180.69,180.68,26.72]
[1755809279693,56.69308369,180.69,180.68,26.72]
[1755809281502,56.69308369,180.69,180.68,0.72]
[1755809284098,56.69308369,180.69,180.68,26.03]
[1755809284600,57.17740683,180.69,180.68,0.03]
[1755809284806,53.02729713,180.69,180.68,0.03]
[1755809284991,56.97811791,180.69,180.68,0.03]
[1755809285890,57.17827871,180.69,180.68,0.03]
[1755809288387,57.17806403,180.69,180.68,0.03]
[1755809288601,61.83529532,180.69,180.68,0.03]
[1755809291891,61.83529532,180.69,180.66,0.03]
[1755809292089,10.74764836,180.67,180.66,0.03]
[1755809292295,61.62785349,180.67,180.66,0.03]
[1755809293093,61.62785349,180.67,180.66,0.72]
[1755809293289,61.62785349,180.67,180.66,0.03]
[1755809293812,66.12206513,180.67,180.66,0.03]
[1755809294309,72.11560089,180.67,180.64,0.03]
[1755809294609,11.58707152,180.65,180.64,0.03]
[1755809294808,62.98629921,180.65,180.64,0.03]
[1755809295116,62.66579415,180.65,180.64,0.03]
[1755809295292,56.67225839,180.65,180.64,0.03]
[1755809295611,56.95658153,180.65,180.64,0.72]
[1755809295813,56.67225839,180.65,180.64,0.72]
[1755809296187,50.87872263,180.65,180.64,0.72]
[1755809296391,56.67225839,180.65,180.64,0.72]
[1755809303799,56.66884721,180.65,180.64,0.72]
[1755809304117,132.4,180.66,180.65,26.0]
[1755809304301,132.4,180.66,180.65,26.7]
[1755809304499,138.19353576,180.66,180.65,26.7]
[1755809305099,132.4,180.66,180.65,0.7]
[1755809305325,48.79353576,180.68,180.67,26.0]
[1755809305525,48.77353576,180.68,180.67,26.7]
[1755809305707,5.79353576,180.68,180.67,26.7]
[1755809306206,9.52455344,180.68,180.67,26.7]
[1755809310209,9.52417893,180.68,180.67,26.7]
[1755809310940,9.52417893,180.68,180.64,0.03]
[1755809311108,5.79353576,180.65,180.64,0.03]
[1755809311439,52.91957771,180.65,180.64,0.03]
[1755809311609,52.50417893,180.65,180.64,0.03]
[1755809311810,48.77353576,180.65,180.64,26.03]
[1755809312012,48.77353576,180.65,180.64,26.73]
[1755809312214,42.98,180.65,180.64,26.73]
[1755809312418,48.77353576,180.65,180.64,26.73]
[1755809314734,48.77353576,180.65,180.64,0.73]
[1755809315035,42.98,180.65,180.64,0.73]
[1755809315333,42.98,180.67,180.64,38.05940821]
[1755809315543,48.77353576,180.68,180.65,0.7]
[1755809315713,48.77353576,180.69,180.65,0.7]
[1755809316405,42.98,180.69,180.68,26.0]
[1755809316605,5.79353576,180.69,180.68,26.7]
[1755809316807,48.83353576,180.7,180.69,26.0]
[1755809317116,0.06,180.7,180.69,32.23434058]
[1755809317511,0.06,180.7,180.69,38.02787634]
[1755809317712,0.06,180.7,180.69,32.23434058]
[1755809319444,0.06,180.7,180.69,26.7]
[1755809320141,0.06,180.7,180.69,32.23434058]
[1755809320519,0.06,180.7,180.69,26.7]
[1755809321044,5.85353576,180.7,180.69,26.7]
[1755809321635,0.06,180.7,180.69,26.7]
[1755809322832,0.06,180.7,180.69,32.23434058]
[1755809324632,0.06,180.7,180.69,26.7]
[1755809325144,0.06,180.7,180.69,32.23434058]
[1755809325642,0.06,180.7,180.69,38.02787634]
[1755809327051,0.06,180.7,180.69,32.23434058]
[1755809331732,0.06,180.7,180.69,38.02787634]
[1755809332135,0.06,180.7,180.69,32.23434058]
[1755809332344,0.06,180.7,180.69,38.02787634]
[1755809332549,0.06,180.7,180.69,54.66819534]
[1755809336250,0.06,180.7,180.69,48.87465958]
[1755809336455,0.06,180.7,180.69,43.340319]
[1755809337030,0.06,180.7,180.69,48.87465958]
[1755809339035,0.06,180.7,180.69,43.340319]
[1755809339243,0.06,180.7,180.69,16.640319]
[1755809339437,0.06,180.7,180.69,22.83465958]
[1755809340337,0.06,180.7,180.69,28.62819534]
[1755809341233,0.06,180.7,180.69,17.300319]
[1755809341560,0.06,180.7,180.69,22.83465958]
[1755809342135,0.06,180.7,180.69,17.300319]
[1755809342446,5.85353576,180.7,180.69,16.640319]
[1755809342646,0.06,180.7,180.69,16.640319]
[1755809343048,0.06,180.7,180.69,17.300319]
[1755809343253,0.06,180.7,180.69,16.640319]
[1755809344353,5.85353576,180.7,180.69,16.640319]
[1755809344544,6.05353576,180.7,180.69,16.640319]
[1755809344947,6.05353576,180.7,180.66,0.03]
[1755809345166,5.79353576,180.67,180.66,17.330319]
[1755809345375,48.71353576,180.69,180.68,26.0]
[1755809345579,42.92,180.69,180.68,26.66]
[1755809345872,48.71353576,180.69,180.68,26.0]
[1755809347666,48.71353576,180.69,180.67,5.53494953]
[1755809347976,48.71353576,180.69,180.67,6.19494953]
[1755809348157,48.71353576,180.69,180.68,26.0]
[1755809348766,48.91353576,180.69,180.68,26.0]
[1755809351660,49.1978589,180.69,180.68,26.0]
[1755809351974,49.1978589,180.69,180.66,16.670319]
[1755809351975,52.92328388,180.69,180.66,0.03]
[1755809352167,5.79353576,180.67,180.66,0.03]
[1755809352475,48.71353576,180.67,180.66,0.03]
[1755809353078,48.91353576,180.67,180.66,0.03]
[1755809353648,48.71353576,180.67,180.66,0.03]
[1755809355666,48.91353576,180.67,180.66,0.03]
[1755809356483,57.06278211,180.67,180.66,0.03]
[1755809358176,56.86278211,180.67,180.66,0.03]
[1755809358369,56.86305009,180.67,180.66,0.03]
[1755809358583,57.06305009,180.67,180.66,0.03]
[1755809359079,56.86305009,180.67,180.66,0.03]
[1755809359275,13.94305009,180.67,180.66,0.03]
[1755809359475,56.57872695,180.67,180.66,0.03]
[1755809359682,52.4388379,180.67,180.66,0.7]
[1755809359858,48.71353576,180.67,180.66,0.7]
[1755809363660,48.71353576,180.67,180.66,17.34586]
[1755809364362,48.71353576,180.67,180.66,0.03]
[1755809364895,48.71353576,180.67,180.66,26.03]
[1755809365092,52.92027126,180.67,180.66,26.03]
[1755809365266,52.92027126,180.67,180.66,0.03]
[1755809365463,52.92027126,180.67,180.66,26.03]
[1755809366375,57.05564482,180.67,180.66,0.03]
[1755809366573,13.93564482,180.67,180.66,0.03]
[1755809366779,52.78027126,180.67,180.66,0.03]
[1755809367078,5.85353576,180.67,180.66,0.03]
[1755809367283,48.77353576,180.67,180.66,0.7]
[1755809368069,48.77353576,180.67,180.66,0.03]
[1755809373787,52.49494836,180.67,180.66,0.03]
[1755809373982,52.9792715,180.67,180.66,0.03]
[1755809374885,57.11471918,180.67,180.66,0.03]
[1755809375490,56.91471918,180.67,180.66,0.03]
[1755809375869,5.85353576,180.67,180.66,26.7]
[1755809376067,5.85353576,180.67,180.66,0.7]
[1755809376284,48.75353576,180.67,180.66,0.7]
[1755809376507,48.75353576,180.67,180.66,26.7]
[1755809376988,48.75353576,180.67,180.66,0.7]
[1755809377186,48.75353576,180.67,180.66,26.7]
[1755809379469,48.75353576,180.67,180.66,0.7]
[1755809379674,48.75353576,180.67,180.66,0.03]
[1755809380086,52.47805494,180.67,180.66,0.03]
[1755809380492,52.96237808,180.67,180.66,0.03]
[1755809380812,57.10155263,180.67,180.66,0.03]
[1755809382790,13.87991715,180.66,180.64,0.03]
[1755809382999,194.75076525,180.65,180.64,0.03]
[1755809383184,194.95076525,180.65,180.64,0.03]
[1755809383503,189.15722949,180.65,180.64,0.03]
[1755809383693,188.95722949,180.65,180.64,0.03]
[1755809384202,189.24155263,180.65,180.64,0.03]
[1755809384906,189.24155263,180.65,180.64,0.7]
[1755809385200,141.91805494,180.65,180.64,0.7]
[1755809385398,141.91805494,180.65,180.64,26.7]
[1755809385399,184.81805494,180.65,180.64,26.7]
[1755809385604,181.09353576,180.65,180.64,26.7]
[1755809385789,181.09353576,180.65,180.64,26.03]
[1755809386107,181.09353576,180.65,180.64,0.7]
[1755809386481,181.09353576,180.65,180.64,17.349554]
[1755809388311,184.82492942,180.65,180.64,43.349554]
[1755809388604,175.3,180.65,180.64,17.349554]
[1755809388814,184.82499386,180.65,180.64,17.349554]
[1755809389712,181.09353576,180.65,180.64,17.349554]
[1755809390777,184.82635112,180.65,180.64,17.349554]
[1755809392322,181.09353576,180.65,180.64,17.349554]
[1755809393032,0.06,180.67,180.66,26.0]
[1755809393197,0.06,180.71,180.7,26.0]
[1755809393385,0.06,180.72,180.7,31.79353576]
[1755809393584,0.06,180.72,180.71,6.48353576]
[1755809393999,0.06,180.72,180.71,10.61139572]
[1755809395116,0.06,180.72,180.71,36.35158803]
[1755809395318,0.06,180.72,180.71,16.14512379]
[1755809395530,0.06,180.72,180.71,36.34359848]
[1755809395707,0.06,180.72,180.71,16.13713424]
[1755809395908,0.06,180.72,180.71,29.73272825]
[1755809396125,0.06,180.72,180.71,55.73272825]
[1755809396310,0.06,180.72,180.71,29.73272825]
[1755809397831,0.06,180.72,180.71,23.93919249]
[1755809398000,0.06,180.72,180.71,16.13713424]
[1755809398635,0.06,180.72,180.71,16.12737813]
[1755809398794,0.06,180.72,180.71,29.72297214]
[1755809400003,0.06,180.72,180.71,37.7347249]
[1755809400206,0.06,180.72,180.71,31.94118914]
[1755809400417,0.06,180.72,180.71,38.55205937]
[1755809400625,0.06,180.72,180.71,18.34559513]
[1755809403110,0.06,180.72,180.71,37.7347249]
[1755809403821,0.06,180.72,180.71,37.72355606]
[1755809404017,1e-08,180.72,180.71,37.72355606]
[1755809404214,1e-08,180.72,180.71,37.72312512]
[1755809405224,1e-08,180.72,180.71,18.33399535]
[1755809405435,1e-08,180.72,180.71,17.64399535]
[1755809405942,1e-08,180.72,180.71,18.33399535]
[1755809406422,1e-08,180.72,180.71,17.64399535]
[1755809406944,1e-08,180.72,180.71,17.64265242]
[1755809407243,1e-08,180.72,180.71,18.33265242]
[1755809409739,1e-08,180.72,180.71,12.53911666]
[1755809409963,1e-08,180.72,180.71,18.3311906]
[1755809410242,1e-08,180.72,180.71,31.92678461]
[1755809412218,1e-08,180.72,180.71,26.13324885]
[1755809412420,1e-08,180.72,180.71,31.92678461]
[1755809412943,1e-08,180.72,180.71,27.83107484]
[1755809413117,1e-08,180.72,180.71,31.92435566]
[1755809413522,1e-08,180.72,180.71,31.92453042]
[1755809414175,1e-08,180.72,180.71,31.23453042]
[1755809414332,1e-08,180.72,180.71,31.92453042]
[1755809414728,1e-08,180.72,180.71,26.13099466]
[1755809414934,1e-08,180.72,180.71,17.63893641]
[1755809415842,1e-08,180.72,180.71,18.32893641]
[1755809417039,1e-08,180.72,180.71,17.63893641]
[1755809418371,1e-08,180.72,180.71,18.30893641]
[1755809419835,1e-08,180.72,180.71,31.90453042]
[1755809422167,1e-08,180.72,180.71,27.81107484]
[1755809422362,1e-08,180.72,180.71,31.90873097]
[1755809425368,1e-08,180.72,180.71,31.90937642]
[1755809426561,1e-08,180.73,180.72,13.59559401]
[1755809426767,1e-08,180.73,180.72,72.81096711]
[1755809427360,1e-08,180.73,180.72,67.01743135]
[1755809427935,0.06,180.76,180.75,39.59559401]
[1755809428245,0.06,180.76,180.75,92.34743135]
[1755809428458,0.06,180.76,180.75,93.01743135]
[1755809428768,0.06,180.76,180.75,98.5499348]
[1755809429272,0.06,180.76,180.75,97.8799348]
[1755809430369,0.06,180.76,180.75,100.0976598]
[1755809430660,0.74,180.76,180.75,37.84853003]
[1755809430865,0.06,180.76,180.75,37.84853003]
[1755809431052,0.06,180.76,180.75,44.31206579]
[1755809431562,0.06,180.76,180.75,43.65019724]
[1755809432661,0.06,180.76,180.75,57.91579125]
[1755809435968,0.06,180.76,180.75,52.12225549]
[1755809436161,0.06,180.76,180.75,57.91579125]
[1755809436973,0.06,180.78,180.77,19.38912977]
[1755809437172,0.06,180.78,180.77,66.3355628]
[1755809437381,5.79353576,180.86,180.8,26.0]
[1755809437575,5.79353576,180.85,180.83,26.0]
[1755809437754,137.47353576,180.84,180.83,30.12632212]
[1755809438146,138.15353576,180.84,180.83,46.75741612]
[1755809440683,138.15353576,180.84,180.83,42.631094]
[1755809440969,138.15353576,180.84,180.83,46.75676542]
[1755809441187,138.15353576,180.84,180.83,46.75668242]
[1755809441383,132.36,180.84,180.83,46.75668242]
[1755809441592,138.15353576,180.84,180.83,46.75668242]
[1755809448788,138.15353576,180.84,180.83,46.7533606]
[1755809449606,131.68,180.84,180.83,46.7533606]
[1755809449997,48.61353576,180.85,180.83,52.28336187]
[1755809450297,43.52,180.85,180.84,4.12131848]
[1755809450508,42.82,180.85,180.84,30.12131848]
[1755809450676,42.82,180.85,180.84,30.12114981]
[1755809450875,43.52,180.85,180.84,46.75040081]
[1755809451486,49.31353576,180.85,180.84,46.75040081]
[1755809452311,0.06,180.86,180.84,46.75040081]
[1755809452498,5.85353576,180.86,180.85,30.12114981]
[1755809452698,6.55353576,180.86,180.85,30.12114981]
[1755809453497,6.55353576,180.86,180.85,35.97468481]
[1755809453713,5.85353576,180.86,180.85,35.97468481]
[1755809454006,0.06,180.86,180.85,35.97468481]
[1755809454188,5.85353576,180.86,180.85,35.97468481]
[1755809455728,0.06,180.86,180.85,35.97468481]
[1755809455890,5.85353576,180.86,180.85,35.97468481]
[1755809456092,0.06,180.86,180.85,35.97468481]
[1755809456415,5.85353576,180.86,180.85,35.97135009]
[1755809457425,5.85353576,180.86,180.85,35.97071986]
[1755809459527,5.85353576,180.86,180.85,35.96998383]
[1755809459712,49.37353576,180.86,180.85,35.96998383]
[1755809460087,48.67353576,180.86,180.85,9.96998383]
[1755809460811,49.37353576,180.86,180.85,9.96998383]
[1755809461186,49.37353576,180.86,180.85,35.96998383]
[1755809461387,48.67353576,180.86,180.85,9.96998383]
[1755809461816,5.85353576,180.86,180.85,9.96998383]
[1755809462681,5.85353576,180.86,180.85,15.49942812]
[1755809463715,5.85353576,180.86,180.85,9.96998383]
[1755809463919,6.55353576,180.86,180.85,9.96998383]
[1755809466607,5.85353576,180.86,180.85,9.96998383]
[1755809467319,5.85353576,180.86,180.85,15.49942812]
[1755809467621,5.85353576,180.86,180.85,15.5061444]
[1755809468018,0.06,180.86,180.85,15.5061444]
[1755809468226,0.06,180.86,180.85,16.2261444]
[1755809469092,0.06,180.86,180.85,22.01968016]
[1755809469292,0.06,180.86,180.85,16.2261444]
[1755809476931,0.06,180.86,180.85,16.22921649]
[1755809477319,0.06,180.86,180.85,16.22921861]
[1755809479945,0.06,180.86,180.85,22.02506299]
[1755809480105,0.06,180.86,180.85,16.23152723]
[1755809480306,0.06,180.86,180.85,22.02506299]
[1755809483348,0.06,180.86,180.85,16.23152723]
[1755809483510,0.06,180.86,180.85,22.02506299]
[1755809483834,0.06,180.86,180.85,35.620657]
[1755809484407,1e-08,180.86,180.85,35.620657]
[1755809484815,0.06,180.88,180.86,13.59559401]
[1755809485018,0.06,180.9,180.89,26.0]